bitfinex/quotes_SOLUSD_20250508
["timestamp","ask_amount","ask_price","bid_price","bid_amount"]
[1746741727184,6.21975457,160.78,160.75,35.54130032]
[1746741728291,79.11605999,160.78,160.68,83.9369]
[1746741728497,43.57475967,160.78,160.73,35.54130032]
[1746741728681,40.41860109,160.78,160.74,35.54130032]
[1746741728887,40.41860109,160.78,160.71,26.0]
[1746741729191,40.41860109,160.78,160.73,35.54130032]
[1746741729391,40.41860109,160.78,160.74,35.54130032]
[1746741729599,40.41860109,160.78,160.75,35.54130032]
[1746741729896,6.21975457,160.78,160.75,35.54130032]
[1746741730084,6.21975457,160.78,160.77,35.54130032]
[1746741730489,21.64,160.79,160.77,35.54130032]
[1746741730692,21.72,160.81,160.78,35.54130032]
[1746741730875,6.21813207,160.82,160.8,35.54130032]
[1746741731583,6.21813207,160.82,160.72,54.19094918]
[1746741731584,54.19094918,160.81,160.7,1.5532]
[1746741731770,18.64964886,160.81,160.73,35.54130032]
[1746741731976,18.64964886,160.78,160.74,35.54130032]
[1746741732179,136.4,160.8,160.77,35.54130032]
[1746741732399,21.6,160.82,160.79,35.54130032]
[1746741732611,254.62,160.83,160.81,35.54130032]
[1746741732901,27.93774544,160.83,160.8,35.54130032]
[1746741733080,18.64964886,160.82,160.73,26.0]
[1746741733279,54.19094918,160.82,160.76,35.54130032]
[1746741733580,21.76481561,160.81,160.77,35.54130032]
[1746741733898,21.76481561,160.81,160.78,35.54130032]
[1746741734397,6.21774544,160.83,160.8,35.54130032]
[1746741734584,6.21774544,160.83,160.82,35.54130032]
[1746741735184,6.21747502,160.84,160.82,35.54130032]
[1746741735382,6.21747502,160.84,160.83,35.54130032]
[1746741735777,6.21747502,160.84,160.82,35.54130032]
[1746741735778,0.1284038,160.83,160.82,35.54130032]
[1746741736400,0.1284038,160.83,160.76,26.0]
[1746741736594,0.1284038,160.83,160.79,35.54130032]
[1746741736902,0.1284038,160.83,160.75,27.5817]
[1746741737105,54.31935298,160.83,160.78,35.54130032]
[1746741737279,54.31935298,160.83,160.79,35.54130032]
[1746741737280,0.1284038,160.83,160.79,35.54130032]
[1746741737601,6.34614924,160.83,160.82,35.54130032]
[1746741738705,0.1284038,160.83,160.82,35.54130032]
[1746741739003,6.34614924,160.83,160.82,35.54130032]
[1746741739206,6.34614924,160.83,160.81,35.54130032]
[1746741739207,21.89051285,160.83,160.81,35.54130032]
[1746741739708,6.34614924,160.83,160.82,35.54130032]
[1746741739897,0.1284038,160.83,160.82,37.13280032]
[1746741740203,6.34614924,160.83,160.82,37.13280032]
[1746741740590,0.1284038,160.83,160.82,37.13280032]
[1746741742608,0.1284038,160.83,160.82,1.5915]
[1746741742804,0.1284038,160.83,160.82,37.13280032]
[1746741743311,0.1284038,160.83,160.78,26.0]
[1746741743312,6.34614924,160.83,160.78,26.0]
[1746741743487,6.34614924,160.83,160.81,35.54130032]
[1746741743890,6.34614924,160.83,160.77,7.7733]
[1746741744083,6.34614924,160.83,160.8,35.54130032]
[1746741744280,18.64964886,160.82,160.77,1.6451]
[1746741744484,66.16964886,160.82,160.73,1.6451]
[1746741744789,18.64964886,160.81,160.73,1.6451]
[1746741744988,54.19094918,160.79,160.74,35.54130032]
[1746741745199,21.7,160.8,160.78,35.54130032]
[1746741745399,21.7,160.8,160.72,35.54130032]
[1746741745712,6.21929224,160.79,160.76,35.54130032]
[1746741745895,21.7,160.8,160.78,35.54130032]
[1746741746095,21.7,160.8,160.73,26.0]
[1746741746398,21.7,160.8,160.77,35.54130032]
[1746741746581,18.64964886,160.79,160.69,8.3164]
[1746741746895,54.19094918,160.77,160.69,8.3164]
[1746741747106,35.54130032,160.73,160.65,9.61128693]
[1746741747305,35.54130032,160.73,160.67,35.54130032]
[1746741747486,18.64964886,160.74,160.7,35.54130032]
[1746741747809,18.64964886,160.74,160.71,35.54130032]
[1746741747810,6.22122682,160.74,160.71,35.54130032]
[1746741748011,40.42394274,160.74,160.7,35.54130032]
[1746741748197,24.87087568,160.74,160.65,6.22466263]
[1746741748392,40.14964886,160.73,160.7,35.54130032]
[1746741748598,40.14964886,160.73,160.64,35.54130032]
[1746741748796,40.14964886,160.73,160.7,35.54130032]
[1746741749110,299.55582768,160.8,160.7,35.54130032]
[1746741749111,0.1284038,160.83,160.76,18.64964886]
[1746741749285,0.1284038,160.83,160.75,8.1144]
[1746741749286,0.1284038,160.83,160.82,43.87450032]
[1746741749486,0.1284038,160.83,160.82,75.700257]
[1746741749687,0.1284038,160.83,160.82,107.91838907]
[1746741749908,0.1284038,160.83,160.82,69.87450032]
[1746741750413,0.1284038,160.83,160.82,43.87450032]
[1746741751093,0.1284038,160.83,160.82,8.3332]
[1746741751283,0.1284038,160.83,160.82,43.87450032]
[1746741751613,0.1284038,160.83,160.8,8.3332]
[1746741751912,0.1284038,160.83,160.81,35.54130032]
[1746741752094,6.34623953,160.83,160.78,8.3332]
[1746741752297,6.34623953,160.83,160.78,35.54130032]
[1746741752495,18.64964886,160.82,160.76,8.3332]
[1746741752714,18.64964886,160.82,160.75,1.5744]
[1746741752715,57.04130032,160.81,160.75,43.87450032]
[1746741752912,57.04130032,160.81,160.75,35.54130032]
[1746741752913,40.10964886,160.8,160.75,35.54130032]
[1746741753091,18.64964886,160.78,160.72,8.3332]
[1746741753288,54.19094918,160.78,160.72,35.54130032]
[1746741753490,26.0,160.79,160.74,43.87450032]
[1746741753694,18.64964886,160.79,160.76,8.3332]
[1746741754009,6.21967906,160.78,160.75,43.87450032]
[1746741754304,6.21938693,160.79,160.77,43.87450032]
[1746741754705,6.21938693,160.79,160.76,43.87450032]
[1746741754906,21.46,160.8,160.72,61.54130032]
[1746741754907,6.21896583,160.8,160.77,43.87450032]
[1746741755306,49.15853783,160.81,160.78,43.87450032]
[1746741755490,49.15853783,160.81,160.79,8.3332]
[1746741755891,6.33885844,160.8,160.79,8.3332]
[1746741756318,6.33885844,160.8,160.76,8.3332]
[1746741756511,18.64964886,160.79,160.75,8.3332]
[1746741756699,18.64964886,160.79,160.76,8.3332]
[1746741758125,6.21967906,160.78,160.76,8.3332]
[1746741758323,0.11995297,160.8,160.79,8.3332]
[1746741758540,0.11995297,160.8,160.79,43.87450032]
[1746741758695,0.11995297,160.8,160.79,8.3332]
[1746741759015,0.11995297,160.8,160.79,43.87450032]
[1746741759227,6.33885844,160.8,160.77,8.3332]
[1746741759394,6.33885844,160.8,160.79,35.54130032]
[1746741759597,6.33885844,160.8,160.78,35.54130032]
[1746741759822,21.88612212,160.8,160.77,8.3332]
[1746741760023,21.88612212,160.8,160.77,43.87450032]
[1746741760219,6.33885844,160.8,160.79,43.87450032]
[1746741760427,6.33885844,160.8,160.78,35.54130032]
[1746741760633,6.33885844,160.8,160.79,35.54130032]
[1746741761329,6.33885844,160.8,160.79,43.87450032]
[1746741761541,6.33885844,160.8,160.79,35.54130032]
[1746741761709,0.11995297,160.8,160.79,43.87450032]
[1746741762024,6.33885844,160.8,160.79,43.87450032]
[1746741763331,21.88612212,160.8,160.77,8.3332]
[1746741763558,21.88612212,160.8,160.78,35.54130032]
[1746741764132,21.88612212,160.8,160.77,8.3332]
[1746741764337,21.88612212,160.8,160.78,35.54130032]
[1746741765324,18.64964886,160.79,160.76,8.3332]
[1746741765638,21.88612212,160.8,160.78,35.54130032]
[1746741765934,21.88612212,160.8,160.76,43.87450032]
[1746741767022,43.26612212,160.8,160.76,43.87450032]
[1746741767224,27.71885844,160.8,160.78,43.87450032]
[1746741767540,27.71885844,160.8,160.78,8.3332]
[1746741767719,27.71885844,160.8,160.78,43.87450032]
[1746741767922,43.26612212,160.8,160.76,43.87450032]
[1746741768235,43.26612212,160.8,160.77,35.54130032]
[1746741768541,27.71885844,160.8,160.79,43.87450032]
[1746741768712,0.11995297,160.8,160.79,34.46798816]
[1746741769114,0.11995297,160.8,160.79,60.60277632]
[1746741769312,0.11995297,160.8,160.79,9.9364]
[1746741769537,0.11995297,160.8,160.79,62.20597632]
[1746741770424,0.13651204,160.82,160.81,8.3332]
[1746741770623,0.13651204,160.82,160.81,34.46798816]
[1746741770823,0.13651204,160.82,160.8,8.3332]
[1746741770824,6.35464411,160.82,160.8,8.3332]
[1746741771075,6.35464411,160.82,160.8,34.46798816]
[1746741771341,6.35464411,160.82,160.77,8.3332]
[1746741771342,18.64964886,160.81,160.77,8.3332]
[1746741771641,21.89997429,160.82,160.79,26.14225305]
[1746741772143,21.89997429,160.82,160.77,8.3332]
[1746741772314,21.89997429,160.82,160.79,34.47545305]
[1746741772510,21.89997429,160.82,160.79,26.14225305]
[1746741772723,18.64964886,160.81,160.77,8.3332]
[1746741772937,6.21890547,160.8,160.78,26.14225305]
[1746741773522,21.76616915,160.8,160.76,8.3332]
[1746741773718,18.64964886,160.79,160.76,8.3332]
[1746741773927,18.64964886,160.79,160.67,1.542]
[1746741773928,18.64964886,160.79,160.71,8.3332]
[1746741774132,18.64964886,160.76,160.7,8.3332]
[1746741774438,21.34,160.75,160.7,34.47545305]
[1746741774949,21.34,160.75,160.71,26.14225305]
[1746741774950,6.22122682,160.74,160.71,26.14225305]
[1746741775128,6.22122682,160.74,160.72,26.14225305]
[1746741775324,6.22122682,160.74,160.71,26.14225305]
[1746741776032,0.13204711,160.73,160.71,26.14225305]
[1746741776234,0.13204711,160.73,160.71,8.3332]
[1746741776935,6.22200099,160.72,160.71,8.3332]
[1746741777541,6.22200099,160.72,160.7,26.14225305]
[1746741777715,6.22200099,160.72,160.69,8.3332]
[1746741777921,6.22200099,160.72,160.7,34.47545305]
[1746741778345,6.22200099,160.72,160.7,26.14225305]
[1746741778724,6.22200099,160.72,160.7,34.47545305]
[1746741779134,6.22200099,160.72,160.7,26.14225305]
[1746741779422,6.22200099,160.72,160.67,26.14225305]
[1746741779423,47.91925652,160.72,160.67,26.14225305]
[1746741779633,21.77700347,160.72,160.69,8.3332]
[1746741779940,21.77700347,160.72,160.68,8.3332]
[1746741780149,21.77700347,160.72,160.67,34.47545305]
[1746741780449,26.14225305,160.7,160.64,34.47545305]
[1746741780755,21.32,160.7,160.66,34.47545305]
[1746741781117,66.57297104,160.69,160.66,8.3332]
[1746741781321,21.3,160.68,160.66,8.3332]
[1746741781745,21.3,160.68,160.67,34.47545305]
[1746741782122,21.3,160.68,160.66,8.3332]
[1746741782332,21.3,160.68,160.65,26.14225305]
[1746741782333,21.3,160.68,160.67,8.3332]
[1746741783044,21.3,160.68,160.67,34.47545305]
[1746741783242,27.52354991,160.68,160.67,34.47545305]
[1746741783929,27.52354991,160.68,160.67,8.3332]
[1746741784245,27.52354991,160.68,160.66,8.3332]
[1746741784444,43.08242469,160.68,160.66,8.3332]
[1746741785437,43.08242469,160.68,160.65,26.14225305]
[1746741785637,43.08242469,160.68,160.66,8.3332]
[1746741786241,43.08242469,160.68,160.63,26.14225305]
[1746741786653,43.08242469,160.68,160.65,26.14225305]
[1746741787232,43.08242469,160.68,160.64,26.14225305]
[1746741787433,43.08242469,160.68,160.63,8.3332]
[1746741787632,69.22467774,160.68,160.61,8.3332]
[1746741787854,18.64964886,160.67,160.61,8.3332]
[1746741788153,18.64964886,160.67,160.6,26.0]
[1746741788154,43.08242469,160.68,160.64,26.14225305]
[1746741788364,43.08242469,160.68,160.63,34.47545305]
[1746741788655,43.08242469,160.68,160.64,26.14225305]
[1746741788857,43.08242469,160.68,160.63,26.14225305]
[1746741788858,18.64964886,160.67,160.63,26.14225305]
[1746741789147,44.79190191,160.67,160.62,34.47545305]
[1746741789330,21.78513631,160.66,160.61,34.47545305]
[1746741789851,21.78513631,160.66,160.62,26.14225305]
[1746741790063,21.78513631,160.66,160.61,34.47545305]
[1746741790231,21.78513631,160.66,160.6,8.3332]
[1746741790435,21.78513631,160.66,160.61,26.14225305]
[1746741790637,21.78513631,160.66,160.62,8.3332]
[1746741791163,21.78513631,160.66,160.61,8.3332]
[1746741791365,52.14225305,160.63,160.6,8.3332]
[1746741791547,73.46225305,160.63,160.6,8.3332]
[1746741791750,47.32,160.63,160.6,34.47545305]
[1746741791949,21.32,160.63,160.6,34.47545305]
[1746741792256,21.32,160.63,160.55,7.75108888]
[1746741792257,21.32,160.63,160.61,8.3332]
[1746741792449,21.32,160.63,160.6,8.3332]
[1746741792947,21.32,160.63,160.61,8.3332]
[1746741793256,6.22587473,160.62,160.6,8.3332]
[1746741793872,6.22587473,160.62,160.61,8.3332]
[1746741794544,6.4987,160.71,160.64,8.3332]
[1746741794745,87.33190191,160.7,160.65,34.47545305]
[1746741794947,18.64964886,160.68,160.66,8.3332]
[1746741795159,21.22,160.7,160.69,8.3332]
[1746741795362,27.44277535,160.7,160.69,8.3332]
[1746741795546,27.44277535,160.7,160.68,8.3332]
[1746741795739,27.57020969,160.7,160.68,34.47545305]
[1746741796070,6.35020969,160.7,160.68,8.3332]
[1746741796671,0.12743434,160.7,160.69,34.47545305]
[1746741796835,0.12743434,160.7,160.69,8.3332]
[1746741797040,6.35020969,160.7,160.68,8.3332]
[1746741798073,21.90714808,160.7,160.67,34.47545305]
[1746741798574,18.64964886,160.69,160.65,8.3332]
[1746741799068,44.79190191,160.69,160.65,8.3332]
[1746741799575,21.78242469,160.68,160.65,8.3332]
[1746741799771,6.22354991,160.68,160.67,34.47545305]
[1746741799972,6.22354991,160.68,160.67,8.3332]
[1746741800168,6.22354991,160.68,160.67,34.47545305]
[1746741800777,0.12743434,160.7,160.69,8.3332]
[1746741800976,0.12743434,160.7,160.69,34.47545305]
[1746741801165,0.12743434,160.7,160.69,67.2377061]
[1746741801481,0.13469687,160.72,160.71,40.55558815]
[1746741801662,0.13515093,160.74,160.73,60.47545305]
[1746741801973,0.00803418,160.79,160.78,8.3332]
[1746741802188,21.18,160.84,160.83,8.3332]
[1746741802367,51.18,160.84,160.83,34.47545305]
[1746741802560,30.0,160.84,160.83,34.47545305]
[1746741802882,36.8580836,160.9,160.83,34.47545305]
[1746741802883,48.71505067,160.9,160.83,34.47545305]
[1746741803071,42.5,160.9,160.89,34.47545305]
[1746741803378,21.18,160.9,160.89,34.47545305]
[1746741803876,27.39504039,160.9,160.86,8.3332]
[1746741804264,42.93264138,160.9,160.87,26.14225305]
[1746741804677,27.39504039,160.9,160.89,8.3332]
[1746741804862,6.21504039,160.9,160.89,34.47545305]
[1746741805068,6.21504039,160.9,160.89,8.3332]
[1746741805262,6.21504039,160.9,160.89,34.47545305]
[1746741805462,21.16,160.92,160.9,8.3332]
[1746741805463,6.21465415,160.91,160.9,8.3332]
[1746741805672,6.21465415,160.91,160.9,34.47545305]
[1746741805877,6.21465415,160.91,160.9,46.89721105]
[1746741806076,21.75128953,160.91,160.86,8.3332]
[1746741806264,21.75128953,160.91,160.88,38.56401105]
[1746741806459,21.75128953,160.91,160.86,8.3332]
[1746741806659,21.75128953,160.91,160.89,8.3332]
[1746741806883,21.75128953,160.91,160.89,46.89721105]
[1746741807175,21.75128953,160.91,160.87,38.56401105]
[1746741807357,21.75128953,160.91,160.88,38.56401105]
[1746741807553,6.21465415,160.91,160.9,46.89721105]
[1746741807981,6.21465415,160.91,160.89,8.3332]
[1746741808179,6.21465415,160.91,160.88,38.56401105]
[1746741808480,6.21465415,160.91,160.9,46.89721105]
[1746741808988,6.21465415,160.91,160.9,8.3332]
[1746741809474,21.75128953,160.91,160.88,8.3332]
[1746741809676,57.21365991,160.9,160.85,8.3332]
[1746741809890,18.64964886,160.9,160.86,38.56401105]
[1746741810183,18.64964886,160.9,160.89,46.89721105]
[1746741810184,21.12,160.9,160.89,46.89721105]
[1746741811180,21.12,160.9,160.88,8.3332]
[1746741811385,21.12,160.9,160.88,38.56401105]
[1746741811679,27.33504039,160.9,160.89,38.56401105]
[1746741812060,27.33504039,160.9,160.86,8.3332]
[1746741812263,65.89905144,160.9,160.85,8.3332]
[1746741812463,42.87264138,160.9,160.89,8.3332]
[1746741812668,42.87264138,160.9,160.87,8.3332]
[1746741813275,42.87264138,160.9,160.87,46.89721105]
[1746741813668,42.87264138,160.9,160.89,8.3332]
[1746741813984,27.33504039,160.9,160.89,8.3332]
[1746741814181,27.33504039,160.9,160.89,46.89721105]
[1746741814381,27.33504039,160.9,160.87,8.3332]
[1746741814697,27.33504039,160.9,160.87,7.40030616]
[1746741814870,27.33504039,160.9,160.87,45.96431721]
[1746741815073,27.33504039,160.9,160.89,7.40030616]
[1746741815890,27.44894434,160.9,160.89,7.40030616]
[1746741816190,27.44894434,160.9,160.87,45.96431721]
[1746741816693,66.01295539,160.9,160.87,7.40030616]
[1746741816870,27.44894434,160.9,160.87,45.96431721]
[1746741817066,27.44894434,160.9,160.89,7.40030616]
[1746741817483,27.44894434,160.9,160.87,7.40030616]
[1746741817686,27.44894434,160.9,160.89,7.40030616]
[1746741817900,27.44894434,160.9,160.87,45.96431721]
[1746741818070,66.01295539,160.9,160.87,7.40030616]
[1746741818403,42.98654533,160.9,160.87,7.40030616]
[1746741819069,81.55055638,160.9,160.87,7.40030616]
[1746741819793,38.56401105,160.88,160.87,7.40030616]
[1746741820090,38.56401105,160.89,160.87,7.40030616]
[1746741820387,38.56401105,160.89,160.84,38.56401105]
[1746741820588,42.98654533,160.9,160.87,7.40030616]
[1746741820803,42.98654533,160.9,160.79,27.5243]
[1746741820804,57.21365991,160.88,160.81,45.96431721]
[1746741820987,68.98654533,160.9,160.85,45.96431721]
[1746741821289,68.98654533,160.9,160.86,7.40030616]
[1746741821689,42.98654533,160.9,160.86,45.96431721]
[1746741821990,42.98654533,160.9,160.87,7.40030616]
[1746741822190,42.92654533,160.9,160.87,7.40030616]
[1746741822768,42.92654533,160.9,160.88,7.40030616]
[1746741823091,6.32894434,160.9,160.89,38.56401105]
[1746741823268,27.38894434,160.9,160.89,7.40030616]
[1746741823462,27.38894434,160.9,160.89,45.96431721]
[1746741824566,6.32894434,160.9,160.89,45.96431721]
[1746741825679,6.32894434,160.9,160.89,38.56401105]
[1746741825873,6.32894434,160.9,160.89,33.5117614]
[1746741826072,6.32894434,160.9,160.88,7.40030616]
[1746741826281,21.86654533,160.9,160.88,7.40030616]
[1746741826476,21.86654533,160.9,160.87,7.40030616]
[1746741826790,21.86654533,160.9,160.87,33.5117614]
[1746741826979,21.86654533,160.9,160.87,7.40030616]
[1746741828111,21.86654533,160.9,160.87,33.5117614]
[1746741829411,21.86654533,160.9,160.89,7.40030616]
[1746741829615,6.32894434,160.9,160.89,33.5117614]
[1746741830119,6.32894434,160.9,160.89,7.40030616]
[1746741830906,6.32894434,160.9,160.88,7.40030616]
[1746741831115,21.86654533,160.9,160.87,33.5117614]
[1746741832004,6.32894434,160.9,160.89,33.5117614]
[1746741833315,6.32894434,160.9,160.89,7.40030616]
[1746741833484,6.32894434,160.9,160.87,7.40030616]
[1746741833688,6.32894434,160.9,160.88,7.40030616]
[1746741833999,6.32894434,160.9,160.89,7.40030616]
[1746741835015,6.32894434,160.9,160.89,33.5117614]
[1746741835818,6.45108627,160.9,160.89,33.5117614]
[1746741837315,6.33718232,160.9,160.89,33.5117614]
[1746741838721,0.12214193,160.9,160.89,33.5117614]
[1746741840314,6.33718232,160.9,160.89,7.40030616]
[1746741840506,0.12214193,160.9,160.89,33.5117614]
[1746741840998,6.33718232,160.9,160.89,33.5117614]
[1746741841397,6.33718232,160.9,160.88,7.40030616]
[1746741841608,6.33718232,160.9,160.89,7.40030616]
[1746741841814,6.33718232,160.9,160.88,26.11145524]
[1746741842011,6.33718232,160.9,160.89,33.5117614]
[1746741842713,6.24661859,160.9,160.89,33.5117614]
[1746741842889,0.0315782,160.9,160.89,33.5117614]
[1746741844102,0.0315782,160.9,160.89,35.0404614]
[1746741844318,0.13252406,160.91,160.89,35.0404614]
[1746741844496,0.12425391,160.92,160.91,33.40030616]
[1746741844696,0.11631524,160.94,160.92,33.40030616]
[1746741845005,0.11611362,160.96,160.94,7.40030616]
[1746741845318,0.11611362,160.96,160.94,59.62321664]
[1746741845518,0.11611362,160.96,160.95,59.62321664]
[1746741845696,0.11611362,160.96,160.95,33.5117614]
[1746741848999,0.11611362,160.96,160.95,7.40030616]
[1746741849323,0.11611362,160.96,160.95,59.62321664]
[1746741849518,0.11611362,160.96,160.95,33.5117614]
[1746741849897,0.11611362,160.96,160.95,65.8363263]
[1746741851125,0.11611362,160.96,160.95,118.55967516]
[1746741852004,0.01941164,160.98,160.97,7.40030616]
[1746741852204,0.01941164,160.98,160.97,59.5117614]
[1746741852404,0.1242493,160.99,160.97,78.16141026]
[1746741852610,0.1242493,160.99,160.98,33.5117614]
[1746741853832,0.1242493,160.99,160.98,58.37336205]
[1746741854435,27.10921486,161.06,161.05,7.40030616]
[1746741854436,6.20921486,161.06,161.05,7.40030616]
[1746741854726,20.96,161.08,161.06,7.40030616]
[1746741854727,6.20859235,161.07,161.06,7.40030616]
[1746741854931,18.64964886,161.13,161.06,7.40030616]
[1746741854932,36.39613792,161.13,161.12,7.40030616]
[1746741855235,6.20578379,161.14,161.12,7.40030616]
[1746741855420,6.20578379,161.14,161.13,33.5117614]
[1746741855606,20.96,161.15,161.14,7.40030616]
[1746741855800,20.96,161.15,161.13,26.11145524]
[1746741855801,21.07224662,161.15,161.13,7.40030616]
[1746741856001,27.27764531,161.15,161.13,26.11145524]
[1746741856210,27.27764531,161.15,161.11,33.5117614]
[1746741856507,53.38910055,161.15,161.12,7.40030616]
[1746741856725,27.27764531,161.15,161.12,33.5117614]
[1746741857312,0.11224662,161.15,161.14,33.5117614]
[1746741857514,6.31764531,161.15,161.14,26.11145524]
[1746741857727,32.42910055,161.15,161.13,7.40030616]
[1746741857935,21.83114205,161.15,161.14,7.40030616]
[1746741858235,6.31764531,161.15,161.14,33.5117614]
[1746741859307,6.31764531,161.15,161.14,7.40030616]
[1746741859814,6.31764531,161.15,161.13,33.5117614]
[1746741860137,6.31764531,161.15,161.14,33.5117614]
[1746741861238,21.83114205,161.15,161.11,7.40030616]
[1746741861542,21.83114205,161.15,161.12,7.40030616]
[1746741861910,6.31764531,161.15,161.14,7.40030616]
[1746741862112,6.31764531,161.15,161.13,7.40030616]
[1746741862311,6.31764531,161.15,161.13,33.5117614]
[1746741862519,6.31764531,161.15,161.13,7.40030616]
[1746741862719,6.31764531,161.15,161.13,33.5117614]
[1746741863427,6.31764531,161.15,161.11,33.5117614]
[1746741863607,6.31764531,161.15,161.13,7.40030616]
[1746741863813,21.83114205,161.15,161.12,26.11145524]
[1746741864010,21.83114205,161.15,161.11,26.11145524]
[1746741864241,26.11145524,161.12,161.07,7.40030616]
[1746741864411,26.11145524,161.08,161.07,7.40030616]
[1746741864934,18.64964886,161.1,161.07,7.40030616]
[1746741865137,6.20770997,161.09,161.07,7.40030616]
[1746741865341,6.20770997,161.09,161.07,33.5117614]
[1746741865546,27.02655412,161.12,161.08,33.5117614]
[1746741866048,53.13800936,161.12,161.08,7.40030616]
[1746741866219,27.02655412,161.12,161.1,7.40030616]
[1746741867022,6.31770454,161.15,161.11,7.40030616]
[1746741867219,6.31770454,161.15,161.12,26.11145524]
[1746741867414,6.31770454,161.15,161.08,27.5353]
[1746741867415,6.31770454,161.15,161.13,33.5117614]
[1746741867619,6.31770454,161.15,161.14,33.5117614]
[1746741869632,6.31770454,161.15,161.11,33.5117614]
[1746741869633,21.83120128,161.15,161.11,33.5117614]
[1746741869940,21.83120128,161.15,161.12,7.40030616]
[1746741870143,21.83120128,161.15,161.11,7.40030616]
[1746741870923,21.83120128,161.15,161.12,7.40030616]
[1746741871136,21.83120128,161.15,161.13,7.40030616]
[1746741871346,21.83120128,161.15,161.14,7.40030616]
[1746741871851,47.94265652,161.15,161.11,7.40030616]
[1746741872144,21.83120128,161.15,161.13,26.11145524]
[1746741872348,6.31770454,161.15,161.12,7.40030616]
[1746741872525,6.31770454,161.15,161.12,33.5117614]
[1746741872725,6.31770454,161.15,161.13,33.5117614]
[1746741872925,6.31770454,161.15,161.14,7.40030616]
[1746741873522,6.31770454,161.15,161.13,26.11145524]
[1746741873734,6.31770454,161.15,161.13,7.40030616]
[1746741873940,6.31770454,161.15,161.13,33.5117614]
[1746741874149,6.31770454,161.15,161.13,7.40030616]
[1746741874343,21.83120128,161.15,161.12,7.40030616]
[1746741874537,6.31770454,161.15,161.12,7.40030616]
[1746741875826,6.32554787,161.13,161.12,7.40030616]
[1746741876247,6.32554787,161.13,161.1,7.40030616]
[1746741877124,6.32554787,161.13,161.1,26.11145524]
[1746741877319,6.32554787,161.13,161.08,8.93560616]
[1746741877320,6.32554787,161.13,161.09,33.5117614]
[1746741877532,32.43700311,161.13,161.1,7.40030616]
[1746741877847,21.84097019,161.13,161.11,7.40030616]
[1746741878147,21.84097019,161.13,161.1,7.40030616]
[1746741878349,21.84097019,161.13,161.09,33.5117614]
[1746741878747,21.84097019,161.13,161.11,7.40030616]
[1746741879125,21.84097019,161.13,161.09,33.5117614]
[1746741879526,47.95242543,161.13,161.09,7.40030616]
[1746741880042,21.84097019,161.13,161.09,7.40030616]
[1746741880546,21.84097019,161.13,161.08,26.11145524]
[1746741880547,47.95242543,161.13,161.08,33.5117614]
[1746741880744,26.11145524,161.12,161.08,7.40030616]
[1746741880942,26.11145524,161.12,161.07,33.5117614]
[1746741881246,44.7611041,161.08,161.02,7.40030616]
[1746741881443,26.11145524,161.05,161.01,7.40030616]
[1746741881648,46.91145524,161.06,161.03,7.40030616]
[1746741882042,32.32070702,161.05,161.01,7.40030616]
[1746741882238,32.32070702,161.05,161.0,7.40030616]
[1746741882432,6.20925178,161.05,161.02,7.40030616]
[1746741882635,6.20925178,161.05,161.03,7.40030616]
[1746741882948,32.32070702,161.05,161.0,33.5117614]
[1746741883142,26.11145524,161.02,161.0,7.40030616]
[1746741883343,18.64964886,161.03,160.97,7.40030616]
[1746741883539,26.11145524,161.01,160.97,7.40030616]
[1746741883737,18.64964886,161.03,160.95,7.40030616]
[1746741883738,26.11145524,160.99,160.95,7.40030616]
[1746741883955,26.11145524,160.97,160.93,7.40030616]
[1746741884152,6.21272365,160.96,160.93,7.40030616]
[1746741884453,6.21243191,160.97,160.93,33.5117614]
[1746741884756,6.21243191,160.97,160.96,7.40030616]
[1746741884943,6.21243191,160.97,160.95,7.40030616]
[1746741885130,36.32932885,160.99,160.91,1.51]
[1746741885131,46.91145524,160.99,160.96,7.40030616]
[1746741885335,6.21205217,160.98,160.96,7.40030616]
[1746741885830,32.32350741,160.98,160.93,33.5117614]
[1746741886032,32.3245649,160.95,160.91,7.40030616]
[1746741886559,32.3245649,160.95,160.87,7.7492709]
[1746741886560,26.11145524,160.92,160.87,33.5117614]
[1746741886737,26.11145524,160.92,160.87,7.40030616]
[1746741886936,26.11145524,160.92,160.87,33.5117614]
[1746741887156,46.91145524,160.92,160.88,7.40030616]
[1746741887365,46.91145524,160.92,160.89,7.40030616]
[1746741888374,6.21465415,160.91,160.89,7.40030616]
[1746741889354,136.4,160.95,160.91,7.40030616]
[1746741889542,47.77310966,160.95,160.94,7.40030616]
[1746741889849,73.8845649,160.95,160.91,7.40030616]
[1746741890049,26.11145524,160.94,160.9,7.40030616]
[1746741890249,73.8845649,160.95,160.9,33.5117614]
[1746741890447,63.30588381,160.95,160.91,26.11145524]
[1746741890834,89.41733905,160.95,160.9,26.11145524]
[1746741891036,63.30588381,160.95,160.9,33.5117614]
[1746741891244,89.41733905,160.95,160.9,26.11145524]
[1746741891452,89.41733905,160.95,160.9,33.5117614]
[1746741891651,63.30588381,160.95,160.9,26.11145524]
[1746741891855,63.30588381,160.95,160.9,33.5117614]